[Event "Early-Titled-Tuesday-Blitz-September-12-2023"]
[Site "Chess.com"]
[Date "2023.09.12"]
[Round "5"]
[White "Ncatt"]
[Black "jguerramzllo"]
[Result "1/2-1/2"]
[WhiteElo "2554"]
[BlackElo "2766"]
[TimeControl "180+1"]
[EndTime "8:56:44 PDT"]
[Termination "Game drawn - insufficient material"]

1. e4 {[%clk 0:03:00.9]} 1... e5 {[%clk 0:02:59.3]} 2. Nf3 {[%clk 0:02:59.5]}
2... Nc6 {[%clk 0:03:00]} 3. Bc4 {[%clk 0:02:58.8]} 3... Bc5 {[%clk 0:02:59.5]}
4. O-O {[%clk 0:02:50.9]} 4... Nf6 {[%clk 0:02:57.8]} 5. d4 {[%clk 0:02:48.9]}
5... Bxd4 {[%clk 0:02:57.6]} 6. Nxd4 {[%clk 0:02:47.1]} 6... Nxd4 {[%clk
0:02:58.5]} 7. f4 {[%clk 0:02:41.4]} 7... d6 {[%clk 0:02:58.6]} 8. fxe5 {[%clk
0:02:40.6]} 8... dxe5 {[%clk 0:02:58.5]} 9. Bg5 {[%clk 0:02:40.6]} 9... Rg8
{[%clk 0:02:37.6]} 10. Nc3 {[%clk 0:02:28.7]} 10... c6 {[%clk 0:02:26.9]} 11.
Bxf6 {[%clk 0:02:09.3]} 11... gxf6 {[%clk 0:02:26.6]} 12. Qh5 {[%clk 0:02:02.5]}
12... Be6 {[%clk 0:01:45.3]} 13. Bxe6 {[%clk 0:01:57.8]} 13... Nxe6 {[%clk
0:01:44.7]} 14. Qxh7 {[%clk 0:01:54.8]} 14... Ke7 {[%clk 0:01:32]} 15. Rad1
{[%clk 0:01:36.3]} 15... Qb6+ {[%clk 0:01:26.1]} 16. Kh1 {[%clk 0:01:28.3]}
16... Rg7 {[%clk 0:01:15]} 17. Qh4 {[%clk 0:01:20.5]} 17... Rg6 {[%clk 0:01:13]}
18. b3 {[%clk 0:01:14.7]} 18... Rag8 {[%clk 0:01:10.8]} 19. Ne2 {[%clk
0:01:05.5]} 19... Rg5 {[%clk 0:00:38.8]} 20. Ng3 {[%clk 0:01:02]} 20... Qc5
{[%clk 0:00:25.9]} 21. Nf5+ {[%clk 0:01:00]} 21... Rxf5 {[%clk 0:00:25.7]} 22.
Rxf5 {[%clk 0:00:57.2]} 22... Rg6 {[%clk 0:00:19.5]} 23. Rdf1 {[%clk 0:00:52.2]}
23... Qxc2 {[%clk 0:00:18.3]} 24. R5f2 {[%clk 0:00:47.2]} 24... Qd3 {[%clk
0:00:14.8]} 25. Rxf6 {[%clk 0:00:46.3]} 25... Kd6 {[%clk 0:00:06.3]} 26. Rxg6
{[%clk 0:00:44.8]} 26... fxg6 {[%clk 0:00:06.7]} 27. Qf2 {[%clk 0:00:35.9]}
27... Qxe4 {[%clk 0:00:05.7]} 28. Re1 {[%clk 0:00:34.5]} 28... Qd5 {[%clk
0:00:01.7]} 29. Qe2 {[%clk 0:00:31.9]} 29... Kc7 {[%clk 0:00:02.2]} 30. Qxe5+
{[%clk 0:00:29.6]} 30... Qxe5 {[%clk 0:00:03.1]} 31. Rxe5 {[%clk 0:00:30.2]}
31... Kd6 {[%clk 0:00:04]} 32. Ra5 {[%clk 0:00:27.4]} 32... a6 {[%clk
0:00:03.6]} 33. h4 {[%clk 0:00:22.8]} 33... c5 {[%clk 0:00:03.8]} 34. g4 {[%clk
0:00:21.5]} 34... Nf4 {[%clk 0:00:03.3]} 35. Kh2 {[%clk 0:00:19.8]} 35... Ne2
{[%clk 0:00:03]} 36. Kh3 {[%clk 0:00:18.9]} 36... Nd4 {[%clk 0:00:03.5]} 37. h5
{[%clk 0:00:16.2]} 37... gxh5 {[%clk 0:00:03.7]} 38. gxh5 {[%clk 0:00:15.5]}
38... Ne6 {[%clk 0:00:04.1]} 39. h6 {[%clk 0:00:13.3]} 39... Kc6 {[%clk
0:00:04.3]} 40. h7 {[%clk 0:00:11.7]} 40... Ng5+ {[%clk 0:00:04.6]} 41. Kg4
{[%clk 0:00:12]} 41... Nxh7 {[%clk 0:00:05.5]} 42. Ra4 {[%clk 0:00:12.4]} 42...
Nf6+ {[%clk 0:00:05.4]} 43. Kf3 {[%clk 0:00:12.6]} 43... Nd5 {[%clk 0:00:05.9]}
44. Rg4 {[%clk 0:00:12.8]} 44... Nb4 {[%clk 0:00:05.5]} 45. a3 {[%clk
0:00:12.7]} 45... Nc2 {[%clk 0:00:05.7]} 46. Rg6+ {[%clk 0:00:13.6]} 46... Kb5
{[%clk 0:00:05.5]} 47. Ke4 {[%clk 0:00:13.9]} 47... Nxa3 {[%clk 0:00:05.3]} 48.
Ke3 {[%clk 0:00:13.9]} 48... Nc2+ {[%clk 0:00:05.3]} 49. Kd3 {[%clk 0:00:14.2]}
49... Nd4 {[%clk 0:00:05.9]} 50. Kc3 {[%clk 0:00:14.9]} 50... b6 {[%clk
0:00:06.2]} 51. Rf6 {[%clk 0:00:14]} 51... a5 {[%clk 0:00:06.6]} 52. Rg6 {[%clk
0:00:13.5]} 52... Nc6 {[%clk 0:00:06.4]} 53. Rf6 {[%clk 0:00:13.5]} 53... Nb4
{[%clk 0:00:06.8]} 54. Re6 {[%clk 0:00:13.6]} 54... Nd5+ {[%clk 0:00:06.9]} 55.
Kb2 {[%clk 0:00:14]} 55... Nf4 {[%clk 0:00:06.6]} 56. Rf6 {[%clk 0:00:14.2]}
56... Nd5 {[%clk 0:00:06.3]} 57. Rd6 {[%clk 0:00:14.3]} 57... Nb4 {[%clk
0:00:06.1]} 58. Kc3 {[%clk 0:00:14.4]} 58... Nc6 {[%clk 0:00:06.1]} 59. Rh6
{[%clk 0:00:14.6]} 59... Nd4 {[%clk 0:00:05.6]} 60. Kb2 {[%clk 0:00:15]} 60...
Ka6 {[%clk 0:00:05]} 61. Rg6 {[%clk 0:00:15.3]} 61... Kb5 {[%clk 0:00:05.1]} 62.
Kc3 {[%clk 0:00:15.8]} 62... Nc6 {[%clk 0:00:05.2]} 63. Rh6 {[%clk 0:00:16.1]}
63... Nb4 {[%clk 0:00:05.2]} 64. Kb2 {[%clk 0:00:16.3]} 64... Nd5 {[%clk
0:00:05.4]} 65. Rg6 {[%clk 0:00:16.8]} 65... c4 {[%clk 0:00:04.8]} 66. Rg5
{[%clk 0:00:15.6]} 66... Kc5 {[%clk 0:00:04.6]} 67. bxc4 {[%clk 0:00:15.5]}
67... Kxc4 {[%clk 0:00:05.2]} 68. Rg4+ {[%clk 0:00:16.1]} 68... Kc5 {[%clk
0:00:05.3]} 69. Rg5 {[%clk 0:00:16.7]} 69... b5 {[%clk 0:00:05.8]} 70. Kb3
{[%clk 0:00:17.1]} 70... a4+ {[%clk 0:00:05.9]} 71. Ka3 {[%clk 0:00:17.8]} 71...
Kc4 {[%clk 0:00:05.8]} 72. Rg4+ {[%clk 0:00:18.3]} 72... Kc3 {[%clk 0:00:05.3]}
73. Rg3+ {[%clk 0:00:18.9]} 73... Kd4 {[%clk 0:00:05]} 74. Rg4+ {[%clk
0:00:18.8]} 74... Kd3 {[%clk 0:00:05.5]} 75. Rg3+ {[%clk 0:00:19.4]} 75... Ne3
{[%clk 0:00:05.9]} 76. Kb4 {[%clk 0:00:19.9]} 76... Ke4 {[%clk 0:00:04.7]} 77.
Kxb5 {[%clk 0:00:19.8]} 77... a3 {[%clk 0:00:05.2]} 78. Rg1 {[%clk 0:00:20]}
78... Nc2 {[%clk 0:00:03.5]} 79. Kc4 {[%clk 0:00:18.6]} 79... a2 {[%clk
0:00:03.9]} 80. Kb3 {[%clk 0:00:19]} 80... a1=Q {[%clk 0:00:04.2]} 81. Rxa1
{[%clk 0:00:19.4]} 81... Nxa1+ {[%clk 0:00:04.7]} 1/2-1/2

[Event "Early-Titled-Tuesday-Blitz-September-12-2023"]
[Site "Chess.com"]
[Date "2023.09.12"]
[Round "5"]
[White "carokannlover213"]
[Black "MBA_CHESS_2021"]
[Result "0-1"]
[WhiteElo "2711"]
[BlackElo "2159"]
[TimeControl "180+1"]
[EndTime "8:56:46 PDT"]
[Termination "MBA_CHESS_2021 won by checkmate"]

1. e4 {[%clk 0:03:00.9]} 1... c5 {[%clk 0:02:58.6]} 2. Nf3 {[%clk 0:03:00.4]}
2... Nc6 {[%clk 0:02:58.8]} 3. d4 {[%clk 0:02:59.9]} 3... cxd4 {[%clk
0:02:58.6]} 4. Nxd4 {[%clk 0:03:00.8]} 4... g6 {[%clk 0:02:57.6]} 5. Nc3 {[%clk
0:02:58]} 5... Bg7 {[%clk 0:02:57.7]} 6. Be3 {[%clk 0:02:58.7]} 6... Nf6 {[%clk
0:02:57.8]} 7. Bc4 {[%clk 0:02:57.9]} 7... O-O {[%clk 0:02:57.4]} 8. f3 {[%clk
0:02:57.5]} 8... d6 {[%clk 0:02:56.3]} 9. Qd2 {[%clk 0:02:57.2]} 9... Bd7 {[%clk
0:02:51.6]} 10. Bb3 {[%clk 0:02:56.4]} 10... a5 {[%clk 0:02:49.8]} 11. Nxc6
{[%clk 0:02:50.7]} 11... Bxc6 {[%clk 0:02:49.2]} 12. a4 {[%clk 0:02:46.8]} 12...
Rc8 {[%clk 0:02:42]} 13. O-O {[%clk 0:02:45.5]} 13... Nd7 {[%clk 0:02:35.7]} 14.
Rab1 {[%clk 0:01:58.9]} 14... Nc5 {[%clk 0:02:31.4]} 15. Bxc5 {[%clk 0:01:51]}
15... dxc5 {[%clk 0:02:30.7]} 16. Qe2 {[%clk 0:01:50.9]} 16... Qd4+ {[%clk
0:01:31.6]} 17. Kh1 {[%clk 0:01:48.9]} 17... c4 {[%clk 0:01:31.4]} 18. Bxc4
{[%clk 0:01:44.7]} 18... Bxa4 {[%clk 0:01:30.4]} 19. Bd5 {[%clk 0:01:14.2]}
19... Bc6 {[%clk 0:01:19.5]} 20. Rfd1 {[%clk 0:01:14.6]} 20... Qc5 {[%clk
0:01:18.5]} 21. Bxc6 {[%clk 0:01:10.5]} 21... Rxc6 {[%clk 0:01:16]} 22. Nd5
{[%clk 0:00:53.9]} 22... e6 {[%clk 0:01:15.8]} 23. Ne3 {[%clk 0:00:54.1]} 23...
Bh6 {[%clk 0:01:11.8]} 24. Ng4 {[%clk 0:00:53.6]} 24... Bg7 {[%clk 0:01:04.8]}
25. Ne3 {[%clk 0:00:50.8]} 25... Bd4 {[%clk 0:00:53.1]} 26. Nf1 {[%clk
0:00:49.6]} 26... Be5 {[%clk 0:00:47.9]} 27. c3 {[%clk 0:00:49.1]} 27... b5
{[%clk 0:00:45.7]} 28. g3 {[%clk 0:00:47.6]} 28... b4 {[%clk 0:00:41.8]} 29.
cxb4 {[%clk 0:00:48.5]} 29... axb4 {[%clk 0:00:38.1]} 30. f4 {[%clk 0:00:43.4]}
30... Bg7 {[%clk 0:00:31.8]} 31. e5 {[%clk 0:00:41.1]} 31... Rfc8 {[%clk
0:00:31.3]} 32. Kg2 {[%clk 0:00:37.8]} 32... Bf8 {[%clk 0:00:30.2]} 33. Rd2
{[%clk 0:00:34.8]} 33... h6 {[%clk 0:00:28.7]} 34. Rbd1 {[%clk 0:00:33.3]} 34...
Qc4 {[%clk 0:00:27.3]} 35. Qf3 {[%clk 0:00:31.8]} 35... Kg7 {[%clk 0:00:25.6]}
36. Ne3 {[%clk 0:00:31.3]} 36... Qb5 {[%clk 0:00:23.4]} 37. Ng4 {[%clk
0:00:27.6]} 37... Be7 {[%clk 0:00:22.3]} 38. Nf2 {[%clk 0:00:27]} 38... R6c7
{[%clk 0:00:21.4]} 39. Ne4 {[%clk 0:00:27.3]} 39... Qb7 {[%clk 0:00:20.1]} 40.
Re2 {[%clk 0:00:24.2]} 40... Rc2 {[%clk 0:00:18.7]} 41. Rdd2 {[%clk 0:00:24.2]}
41... b3 {[%clk 0:00:17.8]} 42. Nf2 {[%clk 0:00:18.5]} 42... Qxf3+ {[%clk
0:00:14.4]} 43. Kxf3 {[%clk 0:00:19.4]} 43... Bb4 {[%clk 0:00:14.7]} 44. Rd4
{[%clk 0:00:15.6]} 44... Rxe2 {[%clk 0:00:14.3]} 45. Kxe2 {[%clk 0:00:16.5]}
45... Rc2+ {[%clk 0:00:14.6]} 46. Kf3 {[%clk 0:00:11.8]} 46... Bc5 {[%clk
0:00:14.3]} 47. Rd7 {[%clk 0:00:05.7]} 47... Rxf2+ {[%clk 0:00:14.2]} 48. Ke4
{[%clk 0:00:06.4]} 48... Rxb2 {[%clk 0:00:14.8]} 49. Rb7 {[%clk 0:00:05.8]}
49... Bg1 {[%clk 0:00:14.7]} 50. h3 {[%clk 0:00:05.6]} 50... Bh2 {[%clk
0:00:14.5]} 51. g4 {[%clk 0:00:05.7]} 51... Re2+ {[%clk 0:00:13.4]} 52. Kf3
{[%clk 0:00:05.8]} 52... Rb2 {[%clk 0:00:13.4]} 53. Ke4 {[%clk 0:00:05.6]} 53...
Bg1 {[%clk 0:00:13.2]} 54. f5 {[%clk 0:00:05.9]} 54... gxf5+ {[%clk 0:00:12.7]}
55. gxf5 {[%clk 0:00:06.8]} 55... exf5+ {[%clk 0:00:13.3]} 56. Kxf5 {[%clk
0:00:07.2]} 56... Rf2+ {[%clk 0:00:13.9]} 57. Kg4 {[%clk 0:00:07.8]} 57... b2
{[%clk 0:00:14.4]} 58. e6 {[%clk 0:00:08.1]} 58... Kf8 {[%clk 0:00:12.9]} 59.
e7+ {[%clk 0:00:05.2]} 59... Ke8 {[%clk 0:00:12.8]} 60. Kg3 {[%clk 0:00:06.1]}
60... Rc2 {[%clk 0:00:12]} 61. Kf3 {[%clk 0:00:06]} 61... Bd4 {[%clk 0:00:11.9]}
62. Ke4 {[%clk 0:00:06.2]} 62... Bf6 {[%clk 0:00:11.8]} 63. Kd3 {[%clk
0:00:06.7]} 63... Rc1 {[%clk 0:00:11.9]} 64. Rb8+ {[%clk 0:00:06.5]} 64... Kxe7
{[%clk 0:00:11.9]} 65. Rb7+ {[%clk 0:00:07.4]} 65... Kf8 {[%clk 0:00:12]} 66.
Rb8+ {[%clk 0:00:02.7]} 66... Kg7 {[%clk 0:00:12]} 67. Rb4 {[%clk 0:00:03.6]}
67... b1=Q+ {[%clk 0:00:10.9]} 68. Rxb1 {[%clk 0:00:01.4]} 68... Rxb1 {[%clk
0:00:10.9]} 69. Ke4 {[%clk 0:00:02.3]} 69... Rb5 {[%clk 0:00:10.2]} 70. Kf3
{[%clk 0:00:03.2]} 70... Rg5 {[%clk 0:00:09.8]} 71. Kf4 {[%clk 0:00:03.5]} 71...
Rg1 {[%clk 0:00:09.6]} 72. Kf3 {[%clk 0:00:04.4]} 72... h5 {[%clk 0:00:09.8]}
73. Ke4 {[%clk 0:00:05.3]} 73... h4 {[%clk 0:00:09.5]} 74. Kf5 {[%clk
0:00:05.9]} 74... Rg3 {[%clk 0:00:09.6]} 75. Kf4 {[%clk 0:00:06.8]} 75... Rxh3
{[%clk 0:00:09.8]} 76. Kg4 {[%clk 0:00:07.7]} 76... Rg3+ {[%clk 0:00:10]} 77.
Kf4 {[%clk 0:00:08.6]} 77... Kg6 {[%clk 0:00:09.7]} 78. Ke4 {[%clk 0:00:09.5]}
78... Kg5 {[%clk 0:00:10]} 79. Kd5 {[%clk 0:00:09.1]} 79... Rg4 {[%clk
0:00:10.1]} 80. Kc6 {[%clk 0:00:10]} 80... h3 {[%clk 0:00:10.3]} 81. Kd7 {[%clk
0:00:10.9]} 81... h2 {[%clk 0:00:11.2]} 82. Ke8 {[%clk 0:00:11.8]} 82... h1=Q
{[%clk 0:00:11.3]} 83. Kf8 {[%clk 0:00:12.7]} 83... Qa8+ {[%clk 0:00:10.8]} 84.
Kxf7 {[%clk 0:00:13]} 84... Qd5+ {[%clk 0:00:11]} 85. Kf8 {[%clk 0:00:13.4]}
85... Qd8+ {[%clk 0:00:10.9]} 86. Kf7 {[%clk 0:00:14]} 86... Qe7+ {[%clk
0:00:11.4]} 87. Kg8 {[%clk 0:00:14.9]} 87... Qg7# {[%clk 0:00:11.8]} 0-1

[Event "Early-Titled-Tuesday-Blitz-September-12-2023"]
[Site "Chess.com"]
[Date "2023.09.12"]
[Round "5"]
[White "sergoy"]
[Black "Agibileg"]
[Result "1-0"]
[WhiteElo "2932"]
[BlackElo "2641"]
[TimeControl "180+1"]
[EndTime "8:57:00 PDT"]
[Termination "sergoy won by resignation"]

1. d4 {[%clk 0:03:00.2]} 1... Nf6 {[%clk 0:02:59.8]} 2. c4 {[%clk 0:03:00.9]}
2... e6 {[%clk 0:02:57.9]} 3. Nf3 {[%clk 0:03:00.9]} 3... c5 {[%clk 0:02:56.2]}
4. d5 {[%clk 0:03:01]} 4... exd5 {[%clk 0:02:55.7]} 5. cxd5 {[%clk 0:03:01.4]}
5... d6 {[%clk 0:02:56.2]} 6. Nc3 {[%clk 0:03:02]} 6... g6 {[%clk 0:02:56.7]} 7.
h3 {[%clk 0:03:01.9]} 7... Bg7 {[%clk 0:02:57.1]} 8. e4 {[%clk 0:03:02.5]} 8...
O-O {[%clk 0:02:57.5]} 9. Bd3 {[%clk 0:03:03.1]} 9... Re8 {[%clk 0:02:55.6]} 10.
O-O {[%clk 0:03:02.7]} 10... a6 {[%clk 0:02:55.8]} 11. a4 {[%clk 0:03:02.5]}
11... Nbd7 {[%clk 0:02:50.5]} 12. Bf4 {[%clk 0:03:02.6]} 12... Nh5 {[%clk
0:02:50.2]} 13. Bh2 {[%clk 0:02:59.8]} 13... Ne5 {[%clk 0:02:50]} 14. Be2 {[%clk
0:03:00.5]} 14... Nxf3+ {[%clk 0:02:49.8]} 15. Bxf3 {[%clk 0:03:01.4]} 15... Nf6
{[%clk 0:02:50.3]} 16. Re1 {[%clk 0:03:02]} 16... Nd7 {[%clk 0:02:50.2]} 17. a5
{[%clk 0:02:56.6]} 17... Ne5 {[%clk 0:02:43.5]} 18. Be2 {[%clk 0:02:56.1]} 18...
b5 {[%clk 0:02:41.9]} 19. f4 {[%clk 0:02:42.4]} 19... Nc4 {[%clk 0:02:40.7]} 20.
Bxc4 {[%clk 0:02:39.7]} 20... bxc4 {[%clk 0:02:40.9]} 21. e5 {[%clk 0:02:40.4]}
21... Rb8 {[%clk 0:02:34]} 22. Qe2 {[%clk 0:02:35.9]} 22... Bf5 {[%clk
0:02:31.5]} 23. Qxc4 {[%clk 0:02:32.3]} 23... Rxb2 {[%clk 0:02:31.5]} 24. Qxa6
{[%clk 0:02:30.5]} 24... dxe5 {[%clk 0:02:31.6]} 25. Qc6 {[%clk 0:01:34.7]}
25... e4 {[%clk 0:02:16.5]} 26. Rac1 {[%clk 0:01:25.4]} 26... Bd4+ {[%clk
0:02:02.8]} 27. Kh1 {[%clk 0:01:24.5]} 27... Bd7 {[%clk 0:02:00.5]} 28. Qd6
{[%clk 0:01:19.2]} 28... e3 {[%clk 0:01:52.9]} 29. Bg3 {[%clk 0:00:58]} 29...
Bxh3 {[%clk 0:01:48.6]} 30. Qxd8 {[%clk 0:00:26.3]} 30... Bxg2+ {[%clk
0:01:48.6]} 31. Kh2 {[%clk 0:00:26.2]} 31... Rxd8 {[%clk 0:01:43.5]} 32. Nd1
{[%clk 0:00:26.3]} 32... Ra2 {[%clk 0:01:38.9]} 33. Nxe3 {[%clk 0:00:21.3]}
33... Bxd5+ {[%clk 0:01:39.1]} 34. Kh3 {[%clk 0:00:20.3]} 34... Be6+ {[%clk
0:01:36.8]} 35. f5 {[%clk 0:00:18.3]} 35... Bxe3 {[%clk 0:01:35.1]} 36. Rxe3
{[%clk 0:00:18.9]} 36... Bxf5+ {[%clk 0:01:35.4]} 37. Kh4 {[%clk 0:00:19.6]}
37... f6 {[%clk 0:01:00.3]} 38. Bc7 {[%clk 0:00:16.1]} 38... Rd4+ {[%clk
0:01:00.1]} 39. Kg3 {[%clk 0:00:16.6]} 39... Rg4+ {[%clk 0:01:00.4]} 40. Kf3
{[%clk 0:00:17.2]} 40... Rgg2 {[%clk 0:00:57.5]} 41. Bg3 {[%clk 0:00:12]} 41...
h5 {[%clk 0:00:51.3]} 42. Rxc5 {[%clk 0:00:12]} 42... Bg4+ {[%clk 0:00:51.1]}
43. Ke4 {[%clk 0:00:09.2]} 43... Ra4+ {[%clk 0:00:46.9]} 44. Kd5 {[%clk
0:00:09.5]} 44... Rd2+ {[%clk 0:00:39]} 45. Kc6 {[%clk 0:00:09.4]} 45... Bd7+
{[%clk 0:00:38.7]} 46. Kc7 {[%clk 0:00:09.9]} 46... Kf7 {[%clk 0:00:30.7]} 47.
Bd6 {[%clk 0:00:10.1]} 47... Be6 {[%clk 0:00:27.9]} 48. Rec3 {[%clk 0:00:06.9]}
48... h4 {[%clk 0:00:22]} 49. Rb5 {[%clk 0:00:07.4]} 49... g5 {[%clk 0:00:21.3]}
50. Rc6 {[%clk 0:00:04.9]} 50... h3 {[%clk 0:00:17.1]} 51. a6 {[%clk 0:00:05]}
51... Rda2 {[%clk 0:00:16.4]} 52. Rbb6 {[%clk 0:00:03.2]} 52... h2 {[%clk
0:00:15.8]} 53. Bxh2 {[%clk 0:00:02.9]} 53... Rxh2 {[%clk 0:00:16.7]} 54. Rxe6
{[%clk 0:00:03.4]} 54... Rc2+ {[%clk 0:00:16.3]} 55. Kb7 {[%clk 0:00:03.8]}
55... Rf2 {[%clk 0:00:15.6]} 56. a7 {[%clk 0:00:03.9]} 56... Rxa7+ {[%clk
0:00:14.6]} 57. Kxa7 {[%clk 0:00:04.2]} 57... g4 {[%clk 0:00:15.5]} 58. Re3
{[%clk 0:00:04.4]} 58... Kg6 {[%clk 0:00:15.1]} 59. Kb7 {[%clk 0:00:04.2]} 59...
Kg5 {[%clk 0:00:14.7]} 60. Kc6 {[%clk 0:00:04.8]} 60... f5 {[%clk 0:00:14.2]}
61. Rb5 {[%clk 0:00:05.3]} 61... Kf4 {[%clk 0:00:12.4]} 62. Rc3 {[%clk
0:00:05.9]} 62... Rf3 {[%clk 0:00:10.5]} 63. Rc1 {[%clk 0:00:05.8]} 63... g3
{[%clk 0:00:09.8]} 64. Rb4+ {[%clk 0:00:06.3]} 64... Kg5 {[%clk 0:00:09.2]} 65.
Kd5 {[%clk 0:00:07]} 65... f4 {[%clk 0:00:09]} 66. Ke4 {[%clk 0:00:06.8]} 66...
Re3+ {[%clk 0:00:09.2]} 67. Kd4 {[%clk 0:00:06.9]} 67... Re8 {[%clk 0:00:07.3]}
68. Rb7 {[%clk 0:00:06.6]} 68... Rg8 {[%clk 0:00:06.9]} 69. Ke4 {[%clk
0:00:06.7]} 69... Kg4 {[%clk 0:00:07]} 70. Rf1 {[%clk 0:00:05]} 70... Re8+
{[%clk 0:00:07.1]} 71. Kd3 {[%clk 0:00:05.6]} 71... g2 {[%clk 0:00:05.6]} 72.
Rg7+ {[%clk 0:00:06.2]} 72... Kh3 {[%clk 0:00:04.8]} 73. Rxf4 {[%clk 0:00:05.2]}
73... Re1 {[%clk 0:00:03.4]} 74. Rf3+ {[%clk 0:00:05.6]} 74... Kh2 {[%clk
0:00:03.7]} 75. Rf2 {[%clk 0:00:06.1]} 75... Rd1+ {[%clk 0:00:02.2]} 76. Ke2
{[%clk 0:00:05.8]} 76... Kh1 {[%clk 0:00:02.7]} 77. Rh7+ {[%clk 0:00:05.3]}
77... Kg1 {[%clk 0:00:02.9]} 78. Rxg2+ {[%clk 0:00:06]} 78... Kxg2 {[%clk
0:00:03.1]} 79. Kxd1 {[%clk 0:00:06.9]} 1-0